bitfinex-derivatives/quotes_SOLF0:USTF0_20240827
["timestamp","ask_amount","ask_price","bid_price","bid_amount"]
[1724781531059,5.17638932,154.92,154.86,0.04788486]
[1724781531264,8.39821689,154.91,154.86,0.04788486]
[1724781531463,5.3627,154.93,154.86,0.04788486]
[1724781531660,11.63087642,154.92,154.86,0.04788486]
[1724781531860,5.17638633,154.91,154.86,0.04788486]
[1724781532264,8.52512185,154.93,154.86,0.04788486]
[1724781532463,11.63081856,154.92,154.86,0.04788486]
[1724781532665,8.52512185,154.93,154.86,0.04788486]
[1724781532861,4.42512185,154.93,154.86,0.04788486]
[1724781533166,11.63081856,154.92,154.86,0.04788486]
[1724781533355,23.5984,154.95,154.86,0.04788486]
[1724781533559,11.63075853,154.94,154.86,0.04788486]
[1724781533866,11.63075853,154.93,154.86,0.04788486]
[1724781534054,5.17633606,154.92,154.86,0.04788486]
[1724781534260,4.53089134,154.95,154.86,0.04788486]
[1724781534454,11.63087642,154.94,154.86,0.04788486]
[1724781534656,11.63087642,154.93,154.86,0.04788486]
[1724781534860,5.17638633,154.92,154.86,0.04788486]
[1724781535059,7.75749134,154.95,154.86,0.04788486]
[1724781535265,11.63087642,154.94,154.86,0.04788486]
[1724781535560,7.75749134,154.95,154.86,0.04788486]
[1724781535561,11.63087642,154.93,154.86,0.04788486]
[1724781535768,5.17638633,154.92,154.86,0.04788486]
[1724781535961,7.75749134,154.95,154.86,0.04788486]
[1724781536166,6.45448466,154.94,154.86,0.04788486]
[1724781536463,5.17638225,154.93,154.86,0.04788486]
[1724781536665,7.75749134,154.95,154.86,0.04788486]
[1724781536865,11.63037464,154.94,154.86,0.04788486]
[1724781537055,11.63037464,154.93,154.86,0.04788486]
[1724781537260,26.825,154.95,154.86,0.04788486]
[1724781537465,11.63039931,154.94,154.86,0.04788486]
[1724781537660,5.17618185,154.93,154.86,0.04788486]
[1724781537962,23.5984,154.95,154.86,0.04788486]
[1724781538156,11.63031966,154.94,154.86,0.04788486]
[1724781538361,5.17614771,154.93,154.86,0.04788486]
[1724781538559,23.5984,154.95,154.86,0.04788486]
[1724781538760,11.63039334,154.94,154.86,0.04788486]
[1724781538960,5.17617929,154.93,154.86,0.04788486]
[1724781539164,23.5984,154.95,154.86,0.04788486]
[1724781539464,5.1761557,154.94,154.86,0.04788486]
[1724781539870,26.8251,154.95,154.86,0.04788486]
[1724781540071,8.93,154.93,154.86,8.97788486]
[1724781548868,4.5151,154.95,154.86,8.97788486]
[1724781548869,1.2884,154.95,154.86,8.97788486]
[1724781549069,14.1059774,154.94,154.86,8.97788486]
[1724781549270,14.1059774,154.94,154.86,0.04788486]
[1724781549470,8.93,154.94,154.86,8.97788486]
[1724781550071,1.2884,154.95,154.86,8.97788486]
[1724781550272,8.93,154.93,154.86,8.97788486]
[1724781553472,1.2884,154.95,154.86,8.97788486]
[1724781553673,8.93,154.93,154.86,8.97788486]
[1724781554573,8.93,154.91,154.86,0.04788486]
[1724781555167,8.93,154.9,154.86,0.04788486]
[1724781559881,2.5129,154.92,154.86,0.04788486]
[1724781560082,8.93,154.9,154.86,0.04788486]
[1724781560476,2.5129,154.92,154.86,0.04788486]
[1724781560774,11.63246606,154.91,154.86,0.04788486]
[1724781560980,5.17706762,154.9,154.86,0.04788486]
[1724781561182,11.4429,154.92,154.86,0.04788486]
[1724781561381,11.63198039,154.91,154.86,0.04788486]
[1724781561588,5.17685947,154.9,154.86,0.04788486]
[1724781561783,2.5129,154.92,154.86,8.97788486]
[1724781562084,5.17668423,154.91,154.86,8.97788486]
[1724781562381,2.5129,154.92,154.86,8.97788486]
[1724781562589,5.1766012,154.91,154.86,8.97788486]
[1724781562882,2.5129,154.92,154.86,8.97788486]
[1724781563280,5.17658835,154.91,154.86,8.97788486]
[1724781563480,2.5129,154.92,154.86,8.97788486]
[1724781563679,5.17658835,154.91,154.86,8.97788486]
[1724781563883,11.4429,154.92,154.86,0.04788486]
[1724781564083,5.17662594,154.91,154.86,0.04788486]
[1724781564275,11.4429,154.92,154.86,0.04788486]
[1724781564474,5.17659639,154.91,154.86,0.04788486]
[1724781564884,11.4429,154.92,154.86,0.04788486]
[1724781565082,5.17661983,154.91,154.86,0.04788486]
[1724781565284,11.4429,154.92,154.86,0.04788486]
[1724781565588,11.63143233,154.91,154.86,0.04788486]
[1724781565779,11.4429,154.92,154.86,0.04788486]
[1724781565980,11.63178904,154.91,154.86,0.04788486]
[1724781566175,5.17677746,154.9,154.86,0.04788486]
[1724781566384,11.4429,154.92,154.86,0.04788486]
[1724781566584,11.63178904,154.91,154.86,0.04788486]
[1724781566789,5.17677746,154.9,154.86,0.04788486]
[1724781566980,11.4429,154.92,154.86,0.04788486]
[1724781567186,11.63190794,154.91,154.86,0.04788486]
[1724781567386,5.17682842,154.9,154.86,0.04788486]
[1724781567588,11.4429,154.92,154.86,0.04788486]
[1724781567985,11.63190794,154.91,154.86,0.04788486]
[1724781568185,5.17682842,154.9,154.86,0.04788486]
[1724781568583,11.4429,154.92,154.86,0.04788486]
[1724781568890,11.63190953,154.91,154.86,0.04788486]
[1724781569091,20.56190953,154.9,154.86,0.04788486]
[1724781569292,11.63279028,154.89,154.86,0.04788486]
[1724781569592,5.17720657,154.88,154.86,0.04788486]
[1724781569792,10.2595,154.9,154.86,0.04788486]
[1724781569994,11.63277501,154.89,154.86,0.04788486]
[1724781570186,5.17720003,154.88,154.86,0.04788486]
[1724781570392,10.2595,154.9,154.86,0.04788486]
[1724781570590,11.63301991,154.89,154.86,0.04788486]
[1724781570890,10.2595,154.9,154.86,0.04788486]
[1724781571091,5.17730499,154.88,154.86,0.04788486]
[1724781571291,10.2595,154.9,154.86,0.04788486]
[1724781571492,11.63302943,154.89,154.86,0.04788486]
[1724781571682,5.17730907,154.88,154.86,0.04788486]
[1724781571880,10.2595,154.9,154.86,0.04788486]
[1724781572094,11.63301991,154.89,154.86,0.04788486]
[1724781572295,5.17730499,154.88,154.86,0.04788486]
[1724781572496,10.2595,154.9,154.86,0.04788486]
[1724781572798,20.56296045,154.89,154.86,0.04788486]
[1724781572999,5.17727951,154.88,154.86,0.04788486]
[1724781573296,8.93,154.89,154.86,0.04788486]
[1724781573491,11.63296045,154.88,154.86,0.04788486]
[1724781573694,8.93,154.89,154.86,0.04788486]
[1724781573894,11.63296045,154.88,154.86,0.04788486]
[1724781574091,8.93,154.89,154.86,0.04788486]
[1724781574293,6.45568094,154.88,154.86,0.04788486]
[1724781574493,8.97231848,154.87,154.57,116.238]
[1724781574695,20.56428476,154.86,154.77,8.93]
[1724781574993,8.93,154.84,154.77,8.93]
[1724781575194,5.17727951,154.83,154.77,13.03]
[1724781575397,2.6057,154.87,154.79,8.93]
[1724781575695,2.6057,154.87,154.81,8.97919614]
[1724781575696,0.04357742,154.85,154.81,8.97919614]
[1724781575893,5.17859356,154.84,154.81,8.97919614]
[1724781576198,0.04357742,154.85,154.81,0.04919614]
[1724781576400,5.17839869,154.84,154.81,0.04919614]
[1724781576601,0.04357742,154.85,154.81,0.04919614]
[1724781576805,5.17840313,154.84,154.81,0.04919614]
[1724781577103,0.04357742,154.85,154.81,0.04919614]
[1724781577499,5.17840436,154.84,154.81,0.04919614]
[1724781577802,0.04357742,154.85,154.82,8.93]
[1724781577995,0.04357742,154.85,154.83,8.93]
[1724781579205,0.04357742,154.85,154.84,3.17680262]
[1724781581096,0.04357742,154.85,154.84,12.10680262]
[1724781581291,6.45558301,154.89,154.84,12.10680262]
[1724781581498,5.17723272,154.88,154.84,12.10680262]
[1724781581697,1.2177,154.93,154.86,8.93]
[1724781581903,15.96776539,154.92,154.86,8.93]
[1724781582103,17.94572231,154.91,154.87,4.1]
[1724781582303,17.94572231,154.9,154.87,4.14890847]
[1724781582507,11.63283601,154.89,154.87,4.14890847]
[1724781582708,5.1772111,154.88,154.87,4.14890847]
[1724781583001,5.1772111,154.88,154.87,13.07890847]
[1724781583401,1.1802111,154.88,154.87,13.07890847]
[1724781583597,6.3128863,154.92,154.87,13.07890847]
[1724781583799,6.45557388,154.91,154.89,8.93]
[1724781584107,6.45557388,154.9,154.89,12.20737603]
[1724781584598,6.45557388,154.9,154.88,8.93]
[1724781584798,6.3128863,154.92,154.88,8.93]
[1724781585105,6.45539345,154.91,154.88,12.09858212]
[1724781585407,6.45539345,154.9,154.88,8.93]
[1724781585596,6.3128863,154.92,154.87,4.14890847]
[1724781585801,12.76814994,154.91,154.88,4.1]
[1724781586100,6.45540342,154.9,154.88,4.1]
[1724781586301,6.45540342,154.89,154.88,4.1]
[1724781588504,6.45540342,154.89,154.88,13.03]
[1724781588900,8.93,154.95,154.88,13.03]
[1724781589108,12.76645799,154.94,154.88,13.03]
[1724781589309,6.45443669,154.93,154.9,8.93]
[1724781589606,8.93,154.96,154.9,8.93]
[1724781589607,6.45443669,154.92,154.9,12.22685583]
[1724781589805,8.93,154.96,154.9,12.22685583]
[1724781590000,12.76544076,154.95,154.9,12.22685583]
[1724781590208,6.45385538,154.94,154.9,12.22685583]
[1724781590407,6.45385538,154.93,154.9,12.22685583]
[1724781590607,8.06710189,154.99,154.9,12.22685583]
[1724781590913,22.27478116,154.98,154.93,0.04664595]
[1724781591101,12.76501444,154.97,154.94,0.04138534]
[1724781591405,3.8654,155.03,154.94,0.04138534]
[1724781591406,8.93,155.04,154.96,8.93]
[1724781591606,15.82016874,155.03,154.98,0.04514247]
[1724781591802,15.82016874,155.02,154.98,0.04514247]
[1724781592106,15.82016874,155.01,154.98,0.04514247]
[1724781592311,6.31101779,155.0,154.98,0.04514247]
[1724781592506,6.31101779,154.99,154.98,0.04514247]
[1724781592906,15.81999094,155.02,154.98,0.04514247]
[1724781593107,15.81999094,155.01,154.98,0.04514247]
[1724781593306,6.31101779,155.0,154.98,0.04514247]
[1724781593504,8.93,155.03,154.98,0.04514247]
[1724781594016,9.50888291,155.02,154.98,0.04514247]
[1724781594201,6.31085025,155.01,154.98,0.04514247]
[1724781594407,6.31085025,155.0,154.98,0.04514247]
[1724781594603,6.31085025,154.99,154.98,0.04514247]
[1724781595405,8.93,155.03,154.98,0.04514247]
[1724781595610,15.81893414,155.02,154.98,0.04514247]
[1724781596316,6.31054293,155.02,154.98,0.04514247]
[1724781596519,6.31054293,155.01,154.98,4.12514247]
[1724781596718,6.31054293,155.02,154.98,4.12514247]
[1724781596905,9.50852444,155.02,154.98,4.12514247]
[1724781597111,6.31062983,155.01,154.98,4.12514247]
[1724781597310,8.93,155.03,154.98,4.12514247]
[1724781597510,6.31065936,155.02,154.98,4.12514247]
[1724781598118,15.24065936,155.02,154.98,4.12514247]
[1724781598413,6.31065936,155.01,154.98,4.12514247]
[1724781599215,15.81987752,155.01,154.98,0.04514247]
[1724781599422,8.93,155.02,154.98,0.04514247]
[1724781599423,6.31065936,155.0,154.98,0.04514247]
[1724781599616,8.93,155.02,154.98,0.04514247]
[1724781599916,15.8204795,155.01,154.98,0.04514247]
[1724781600109,19.0459795,155.01,154.98,0.04514247]
[1724781600315,8.93,154.99,154.94,4.08]
[1724781600513,6.3111373,154.98,154.94,4.08]
[1724781600819,6.3111373,154.98,154.82,0.0904]
[1724781600820,8.93,154.97,154.9,8.93]
[1724781601019,8.93,154.97,154.92,4.08]
[1724781601211,0.04219294,154.96,154.93,0.04255503]
[1724781603112,0.04219294,154.96,154.86,8.93]
[1724781603113,8.93,154.94,154.86,8.93]
[1724781603325,8.93,154.93,154.87,4.08]
[1724781603525,6.4559949,154.92,154.87,4.08]
[1724781603722,6.4559949,154.92,154.83,1.3098]
[1724781603723,15.3859949,154.91,154.84,3.21682261]
[1724781603921,6.4559949,154.9,154.86,4.08]
[1724781604233,6.45663294,154.89,154.86,4.12908962]
[1724781604436,0.04233913,154.9,154.86,4.12908962]
[1724781604728,6.45663069,154.89,154.86,4.12908962]
[1724781604935,0.04233913,154.9,154.86,4.12908962]
[1724781605135,6.45666722,154.89,154.86,13.05908962]
[1724781605430,0.04233913,154.9,154.86,13.05908962]
[1724781605630,6.45663173,154.89,154.86,4.12908962]
[1724781605840,0.04233913,154.9,154.86,4.12908962]
[1724781606027,6.45663232,154.89,154.86,4.12908962]
[1724781606227,0.04233913,154.9,154.86,4.12908962]
[1724781606436,6.45667027,154.89,154.86,4.12908962]
[1724781606735,0.04233913,154.9,154.86,4.12908962]
[1724781606938,6.4566748,154.89,154.86,4.12908962]
[1724781607128,0.04233913,154.9,154.66,9.73997805]
[1724781607129,8.93,154.87,154.66,9.73997805]
[1724781607332,8.93,154.87,154.63,23.99168018]
[1724781607333,8.93,154.84,154.73,2.48919126]
[1724781607630,8.93,154.82,154.73,1.3026]
[1724781608033,8.93,154.84,154.76,8.93]
[1724781608230,0.04944817,154.79,154.77,8.93]
[1724781608538,0.04344231,154.8,154.76,0.04646676]
[1724781608732,0.04363839,154.8,154.78,8.93]
[1724781609936,0.04363839,154.8,154.76,8.9788016]
[1724781610137,0.04363839,154.8,154.76,0.0488016]
[1724781610839,22.36363839,154.8,154.76,0.0488016]
[1724781611241,25.59353839,154.8,154.76,0.0488016]
[1724781611537,22.36363839,154.8,154.76,0.0488016]
[1724781611941,3.2301,154.79,154.69,22.32]
[1724781612238,3.2301,154.79,154.7,4.2]
[1724781612438,1.3256,154.78,154.7,4.2]
[1724781612834,0.04129647,154.76,154.72,0.04662665]
[1724781613634,0.04129647,154.76,154.72,22.36662665]
[1724781619939,0.04129647,154.76,154.74,22.32]
[1724781620748,0.04129647,154.76,154.75,4.2]
[1724781626450,0.04129647,154.76,154.75,7.47313259]
[1724781631654,0.04129647,154.76,154.75,4.2]
[1724781632342,0.04129647,154.76,154.75,13.13]
[1724781633152,0.04129647,154.76,154.75,8.93]
[1724781633354,0.04129647,154.76,154.75,13.13]
[1724781633852,1.2354,154.83,154.75,16.33657792]
[1724781634050,1.2354,154.83,154.78,8.93]
[1724781634459,4.4645,154.83,154.78,8.93]
[1724781634748,0.04069011,154.82,154.79,0.04615988]
[1724781635451,0.04069011,154.82,154.81,8.93]
[1724781637949,0.04069011,154.82,154.8,26.53]
[1724781640256,0.04069011,154.82,154.81,4.2]
[1724781640549,0.04069011,154.82,154.79,0.04615988]
[1724781641449,3.27019011,154.82,154.79,0.04615988]
[1724781642554,3.2296,154.81,154.72,22.33]
[1724781642764,3.2296,154.81,154.73,4.14]
[1724781643055,22.33,154.81,154.72,22.33]
[1724781643259,22.33,154.81,154.71,1.3308]
[1724781643458,22.33,154.81,154.73,4.14]
[1724781643760,0.04230599,154.79,154.75,0.04579204]
[1724781645554,3.27230599,154.79,154.75,0.04579204]
[1724781647051,22.37230599,154.79,154.75,0.04579204]
[1724781647252,22.33,154.79,154.71,4.14]
[1724781647458,3.231,154.75,154.71,4.14]
[1724781647660,22.33,154.77,154.66,23.5451]
[1724781647852,22.33,154.75,154.69,4.14]
[1724781648252,22.33,154.75,154.7,0.04730448]
[1724781648253,22.33,154.73,154.7,0.04730448]
[1724781648449,22.33,154.73,154.64,51.38130856]
[1724781648450,22.33,154.73,154.67,4.14]
[1724781648655,25.5614,154.73,154.67,4.14]
[1724781649060,22.33,154.73,154.67,4.14]
[1724781649465,0.04491709,154.72,154.68,0.04968604]
[1724781650353,22.33,154.71,154.6,22.33]
[1724781650558,22.33,154.71,154.64,4.14]
[1724781651361,0.044757,154.69,154.66,0.04631172]
[1724781653864,3.2324,154.68,154.61,4.14]
[1724781654160,1.2302,154.68,154.57,22.33]
[1724781654357,3.2329,154.66,154.58,4.14]
[1724781654557,2.5226,154.68,154.59,22.33]
[1724781654861,0.04319865,154.65,154.62,0.04180217]
[1724781657567,0.04319865,154.65,154.63,26.47]
[1724781660865,0.04319865,154.65,154.63,27.7185]
[1724781663370,3.2316,154.72,154.63,27.7185]
[1724781663569,3.2316,154.72,154.66,22.33]
[1724781663966,5.7436,154.73,154.66,22.33]
[1724781664274,32.2399,155.08,154.63,5.3885]
[1724781664275,4.14,154.78,154.68,22.33]
[1724781664462,0.04464215,154.71,154.68,22.37949517]
[1724781664770,0.04464215,154.71,154.68,26.51949517]
[1724781668277,0.04464215,154.71,154.68,4.18949517]
[1724781668978,0.04464215,154.71,154.68,26.51949517]
[1724781673983,0.04464215,154.71,154.69,8.94]
[1724781674373,0.04464215,154.71,154.7,8.94]
[1724781674580,1.2242,154.76,154.7,8.94]
[1724781674878,1.2242,154.76,154.74,8.94]
[1724781675579,0.04883497,154.77,154.75,8.94]
[1724781678088,0.04883497,154.77,154.74,22.32]
[1724781681787,0.04883497,154.77,154.76,22.32]
[1724781691489,4.28,154.86,154.76,22.32]
[1724781691791,3.2294,154.82,154.76,22.32]
[1724781692490,0.04138221,154.81,154.77,0.04459154]
[1724781694899,3.2304,154.77,154.73,4.28]
[1724781695498,3.2304,154.77,154.73,7.5112]
[1724781695893,3.27757293,154.77,154.73,7.56075172]
[1724781696094,0.04717293,154.77,154.73,7.56075172]
[1724781696495,0.04717293,154.77,154.74,22.32]
[1724781697899,0.04717293,154.77,154.74,25.5509]
[1724781702100,0.04717293,154.77,154.76,8.93]
[1724781707206,0.04717293,154.77,154.76,12.1606]
[1724781707410,4.4295,154.82,154.76,8.93]
[1724781707615,4.4295,154.82,154.79,8.93]
[1724781708319,4.47036788,154.82,154.79,8.97597609]
[1724781708912,1.24096788,154.82,154.79,8.97597609]
[1724781709107,0.04086788,154.82,154.79,8.97597609]
[1724781710017,3.27026788,154.82,154.79,0.04597609]
[1724781710205,3.27026788,154.82,154.8,8.93]
[1724781711019,0.04086788,154.82,154.81,8.93]
[1724781713312,0.04086788,154.82,154.81,12.1596]
[1724781719223,0.04086788,154.82,154.81,8.93]
[1724781724020,0.04086788,154.82,154.79,0.04597609]
[1724781724529,3.2298,154.8,154.79,0.04597609]
[1724781724721,8.93,154.8,154.71,1.3002]
[1724781725030,5.78201606,154.83,154.71,3.2316]
[1724781725031,3.2307,154.76,154.71,3.2316]
[1724781725217,3.2307,154.76,154.71,13.17]
[1724781725417,8.93,154.79,154.71,13.17]
[1724781725621,8.93,154.79,154.73,8.93]
[1724781725920,0.04623951,154.78,154.74,0.04747228]
[1724781726321,3.2304,154.77,154.74,0.04747228]
[1724781726617,0.04623951,154.78,154.76,8.93]
[1724781728225,0.04623951,154.78,154.76,12.1605]
[1724781729423,0.04623951,154.78,154.77,12.1604]
[1724781731027,0.04623951,154.78,154.77,8.93]
[1724781732226,0.04623951,154.78,154.77,12.1604]
[1724781733920,0.04623951,154.78,154.77,8.93]
[1724781734726,0.04623951,154.78,154.76,7.4705]
[1724781734927,0.04623951,154.78,154.77,8.93]
[1724781736126,0.04623951,154.78,154.76,7.4705]
[1724781736127,0.04623951,154.78,154.76,8.93]
[1724781739031,0.04623951,154.78,154.74,0.04747228]
[1724781739235,8.97623951,154.78,154.74,0.04747228]
[1724781739435,8.93,154.76,154.74,0.04747228]
[1724781739639,3.2308,154.75,154.74,0.04747228]
[1724781740141,1.2244,154.77,154.74,0.04747228]
[1724781740334,1.2244,154.77,154.75,8.93]
[1724781740524,4.4549,154.77,154.75,8.93]
[1724781741330,1.2244,154.77,154.75,8.93]
[1724781741535,3.2306,154.76,154.75,8.93]
[1724781741735,3.2306,154.76,154.74,3.27847228]
[1724781741940,4.4548,154.77,154.74,0.04747228]
[1724781742337,4.4548,154.77,154.74,3.27837228]
[1724781744440,3.2308,154.76,154.74,0.04747228]
[1724781745234,4.4549,154.77,154.74,3.27847228]
[1724781747634,3.2307,154.76,154.74,3.27847228]
[1724781747937,1.2244,154.77,154.74,3.27847228]
[1724781747938,1.2244,154.77,154.74,0.04747228]
[1724781748244,3.2314,154.73,154.7,3.2317]
[1724781748745,3.2311,154.74,154.71,3.2316]
[1724781749244,3.27317422,154.74,154.71,3.28028861]
[1724781749454,3.27317422,154.74,154.72,3.2314]
[1724781749639,0.04207422,154.74,154.72,3.2314]
[1724781750844,0.04207422,154.74,154.73,12.1612]
[1724781753347,3.23,154.8,154.73,8.93]
[1724781753550,3.23,154.8,154.76,8.93]
[1724781753949,3.23,154.79,154.76,8.93]
[1724781754549,3.27276459,154.79,154.76,8.97777336]
[1724781756245,3.27276459,154.79,154.76,12.20837336]
[1724781757252,0.04276459,154.79,154.77,3.2303]
[1724781757453,0.04276459,154.79,154.76,8.97777336]
[1724781757946,0.04276459,154.79,154.77,3.2302]
[1724781758446,3.27276459,154.79,154.76,3.27827336]
[1724781758643,0.04276459,154.79,154.76,0.04777336]
[1724781758849,3.2304,154.78,154.76,0.04777336]
[1724781759653,12.20286459,154.79,154.76,0.04777336]
[1724781760153,3.27286459,154.79,154.76,0.04777336]
[1724781761752,0.04276459,154.79,154.77,3.2304]
[1724781762149,0.04276459,154.79,154.77,8.93]
[1724781762349,0.04276459,154.79,154.78,3.2302]
[1724781764656,0.04276459,154.79,154.76,0.04777336]
[1724781765349,8.93,154.78,154.76,0.04777336]
[1724781765653,8.93,154.77,154.69,13.55510087]
[1724781765852,12.161,154.75,154.71,3.2315]
[1724781766053,3.231,154.75,154.69,8.93]
[1724781766651,0.04593439,154.74,154.7,0.04364256]
[1724781767253,0.04593439,154.74,154.71,3.2316]
[1724781767453,0.04593439,154.74,154.71,8.93]
[1724781768157,0.04593439,154.74,154.7,22.38364256]
[1724781768856,0.04593439,154.74,154.73,3.2312]
[1724781774556,0.04593439,154.74,154.72,3.2313]
[1724781774858,0.04593439,154.74,154.7,25.64522875]
[1724781775052,0.04593439,154.74,154.71,3.33173011]
[1724781775357,0.04593439,154.74,154.7,25.64522875]
[1724781776452,0.04593439,154.74,154.72,22.34]
[1724781776652,5.81609654,154.83,154.72,22.34]
[1724781776959,2.5866,154.83,154.76,22.34]
[1724781777360,3.2294,154.82,154.77,3.2303]
[1724781777860,0.04287993,154.81,154.78,0.04113052]
[1724781778162,0.04287993,154.81,154.78,3.27123052]
[1724781778562,0.04287993,154.81,154.78,22.38113052]
[1724781779059,0.04287993,154.81,154.78,26.52113052]
[1724781780162,0.04287993,154.81,154.79,3.23]
[1724781780662,0.04287993,154.81,154.78,4.18113052]
[1724781780864,0.04287993,154.81,154.79,3.2298]
[1724781782062,0.04287993,154.81,154.78,4.18113052]
[1724781782253,0.04287993,154.81,154.78,0.04113052]
[1724781782661,3.27247993,154.81,154.78,3.27123052]
[1724781783568,0.04287993,154.81,154.79,3.23]
[1724781785267,3.27247993,154.81,154.79,3.23]
[1724781789786,3.27247993,154.81,154.78,0.04113052]
[1724781789787,22.38287993,154.81,154.78,0.04113052]
[1724781790288,2.4828,154.8,154.78,0.04113052]
[1724781790582,3.23,154.79,154.78,0.04113052]
[1724781792595,3.2306,154.76,154.73,3.2311]
[1724781792789,3.2306,154.76,154.72,5.4617]
[1724781793085,3.2309,154.75,154.72,8.6931]
[1724781793289,2.4828,154.8,154.72,7.3714]
[1724781793591,0.04670625,154.78,154.74,0.04959979]
[1724781793792,3.2309,154.75,154.74,0.04959979]
[1724781802192,3.2315,154.72,154.65,22.34]
[1724781802497,3.2315,154.72,154.66,4.63130839]
[1724781802692,3.2315,154.72,154.67,4.63130839]
[1724781802996,3.2315,154.72,154.68,4.63130839]
[1724781803197,3.27715749,154.72,154.68,0.04332124]
[1724781803600,3.27715749,154.72,154.68,3.38178439]
[1724781803796,3.27715749,154.72,154.68,0.04332124]
[1724781804401,3.27715749,154.72,154.69,3.2319]
[1724781805401,0.04565749,154.72,154.68,0.04332124]
[1724781806193,3.27715749,154.72,154.69,3.2319]
[1724781806395,0.04565749,154.72,154.68,22.38332124]
[1724781806795,0.04565749,154.72,154.71,3.2316]
[1724781814199,0.04565749,154.72,154.71,12.1716]
[1724781815305,15.6028,154.8,154.71,8.94]
[1724781815499,3.2304,154.77,154.73,8.94]
[1724781815700,11.4228,154.8,154.74,3.231]
[1724781816005,3.23,154.79,154.75,8.94]
[1724781816203,3.27411853,154.79,154.75,8.98412952]
[1724781817400,0.04411853,154.79,154.75,8.98412952]
[1724781817597,0.04411853,154.79,154.76,8.94]
[1724781817995,0.04411853,154.79,154.77,3.2303]
[1724781819007,0.04411853,154.79,154.78,3.2302]
[1724781819604,0.04411853,154.79,154.78,12.1702]
[1724781820407,70.34909419,154.84,154.83,3.2291]
[1724781820906,70.34909419,154.84,154.81,8.94]
[1724781820907,70.34909419,154.84,154.82,3.2293]
[1724781821810,73.57809419,154.84,154.81,8.98234928]
[1724781822109,70.34909419,154.84,154.81,0.04234928]
[1724781822708,3.23392568,154.83,154.75,4.14]
[1724781823708,0.04250413,154.81,154.77,0.04493666]
[1724781823913,3.27210413,154.81,154.78,3.23]
[1724781825309,3.27210413,154.81,154.77,0.04493666]
[1724781825310,0.04250413,154.81,154.77,0.04493666]
[1724781825916,3.23,154.79,154.77,0.04493666]
[1724781827114,3.2302,154.78,154.77,0.04493666]
[1724781829107,3.2298,154.8,154.77,0.04493666]
[1724781829309,4.18250413,154.81,154.77,0.04493666]
[1724781829707,3.2302,154.78,154.77,0.04493666]
[1724781832518,3.2301,154.79,154.77,0.04493666]
[1724781832717,0.04250413,154.81,154.77,0.04493666]
[1724781834321,3.2301,154.79,154.77,0.04493666]
[1724781835321,3.2302,154.78,154.77,0.04493666]
[1724781839019,3.2301,154.79,154.77,0.04493666]
[1724781839520,0.04250413,154.81,154.77,0.04493666]
[1724781839725,3.2302,154.78,154.77,0.04493666]
[1724781842221,3.2301,154.79,154.77,0.04493666]
[1724781844529,3.2302,154.78,154.77,0.04493666]
[1724781844923,3.27220413,154.81,154.77,8.97493666]
[1724781845325,0.04250413,154.81,154.79,3.2299]
[1724781845724,3.27210413,154.81,154.79,3.2299]
[1724781845924,0.04250413,154.81,154.8,12.1598]
[1724781847932,0.04250413,154.81,154.8,3.2298]
[1724781848327,0.04250413,154.81,154.79,3.2299]
[1724781848628,0.04250413,154.81,154.77,0.04493666]
[1724781848823,3.2301,154.79,154.77,0.04493666]
[1724781849028,8.93,154.78,154.77,0.04493666]
[1724781849725,12.1602,154.78,154.77,0.04493666]
[1724781849934,8.93,154.78,154.7,5.3998]
[1724781850129,8.93,154.77,154.7,8.93]
[1724781850325,8.93,154.75,154.67,4.14]
[1724781850531,8.93,154.75,154.67,13.07]
[1724781850842,3.2314,154.73,154.69,3.232]
[1724781851128,3.2314,154.73,154.69,0.0492834]
[1724781851129,0.0466614,154.73,154.69,0.0492834]
[1724781851336,3.2315,154.72,154.69,0.0492834]
[1724781852035,3.2317,154.71,154.69,0.0492834]
[1724781852428,0.0466614,154.73,154.69,0.0492834]
[1724781852932,3.2315,154.72,154.69,0.0492834]
[1724781855328,3.2779614,154.73,154.69,0.0492834]
[1724781855930,3.2315,154.72,154.69,0.0492834]
[1724781857131,0.0466614,154.73,154.69,0.0492834]
[1724781858034,3.2778614,154.73,154.69,3.2812834]
[1724781860833,3.2315,154.72,154.69,3.2812834]
[1724781861336,3.2779614,154.73,154.69,3.2812834]